fUST/lending_fUST_20250512
["ID","MTS","AMOUNT","RATE_DAILY","PERIOD"]
[360768532,1746999110812,-176.95493878,0.00032285,30]
[360768533,1746999110847,-2118.85293358,0.00032285,30]
[360768534,1746999110883,-70000.0,0.00032285,30]
[360768535,1746999110919,-150.0,0.00032285,31]
[360768536,1746999110954,-197.0,0.00032285,31]
[360768537,1746999110990,-393.0,0.00032285,31]
[360768538,1746999111026,-496.0,0.00032285,31]
[360768539,1746999111062,-765.0,0.00032285,31]
[360768540,1746999111098,-786.0,0.00032285,31]
[360768541,1746999111135,-1214.0,0.00032285,31]
[360768542,1746999111171,-150.0,0.00032285,31]
[360768543,1746999111208,-171.0,0.00032285,31]
[360768544,1746999111245,-341.0,0.00032285,31]
[360768545,1746999111280,-683.0,0.00032285,31]
[360768546,1746999111315,-1366.0,0.00032285,31]
[360768547,1746999111352,-1725.0,0.00032285,31]
[360768548,1746999111388,-2658.0,0.00032285,31]
[360768549,1746999111423,-2731.0,0.00032285,31]
[360768550,1746999111458,-4219.0,0.00032285,31]
[360768551,1746999111495,-150.0,0.00032285,31]
[360768552,1746999111531,-150.0,0.00032285,31]
[360768553,1746999111568,-159.0,0.00032285,31]
[360768554,1746999111604,-160.0,0.00032285,30]
[360768555,1746999111640,-160.0,0.00032285,30]
[360768556,1746999111675,-160.0,0.00032285,30]
[360768557,1746999111712,-160.0,0.00032285,30]
[360768558,1746999111748,-160.0,0.00032285,30]
[360768559,1746999111784,-11581.75675813,0.00032285,30]
[360768560,1746999111963,-162.799999,0.00032285,30]
[360768561,1746999112001,-560779.71309181,0.00032285,30]
[360768562,1746999112041,-509.0,0.00032285,30]
[360768563,1746999112083,-501.329999,0.00032285,30]
[360768564,1746999112121,-600700.67199654,0.00032285,30]
[360768565,1746999112162,-3498.74327967,0.00032285,30]
[360768566,1746999112200,-800.0,0.00032285,31]
[360768567,1746999112238,-2542.39884237,0.00032285,120]
[360768568,1746999112280,-50000.0,0.00032285,70]
[360768569,1746999112322,-50000.0,0.00032285,75]
[360768570,1746999112360,-272.0,0.00032285,120]
[360768571,1746999112399,-1033.61,0.00032285,120]
[360768572,1746999112438,-1033.61,0.00032285,120]
[360768573,1746999112476,-1033.61,0.00032285,120]
[360768574,1746999112514,-1033.61,0.00032285,120]
[360768575,1746999112551,-1033.61,0.00032285,120]
[360768576,1746999112591,-1033.61,0.00032285,120]
[360768577,1746999112632,-1033.61,0.00032285,120]
[360768578,1746999112674,-1033.61,0.00032285,120]
[360768579,1746999112712,-1033.61,0.00032285,120]
[360768580,1746999112750,-1033.61,0.00032285,120]
[360768581,1746999112788,-1033.61,0.00032285,120]
[360768582,1746999112828,-1033.61,0.00032285,120]
[360768583,1746999112868,-1033.61,0.00032285,120]
[360768584,1746999112907,-1033.61,0.00032285,120]
[360768585,1746999112947,-1033.61,0.00032285,120]
[360768586,1746999112985,-1033.61,0.00032285,120]
[360768587,1746999113025,-1033.61,0.00032285,120]
[360768588,1746999113062,-1033.61,0.00032285,120]
[360768589,1746999113101,-1033.61,0.00032285,120]
[360768590,1746999113140,-1033.61,0.00032285,120]
[360768591,1746999113180,-1033.61,0.00032285,120]
[360768592,1746999113220,-1033.61,0.00032285,120]
[360768593,1746999113260,-1033.61,0.00032285,120]
[360768594,1746999113299,-1033.66,0.00032285,120]
[360768595,1746999113336,-1658.7765731,0.00032285,35]
[360768596,1746999113373,-463.0,0.00032285,120]
[360768597,1746999113411,-531.88335226,0.00032285,120]
[360768598,1746999113448,-1920.93914184,0.00032285,45]
[360768599,1746999113486,-662.22885714,0.00032285,120]
[360768600,1746999113524,-1558.6656233,0.00032285,120]
[360768601,1746999113562,-262.88740276,0.00032285,120]
[360768602,1746999113601,-543.23825161,0.00032285,120]
[360768603,1746999113637,-910.12230608,0.00032285,120]
[360768604,1746999113673,-1985.46107675,0.00032285,120]
[360768605,1746999113708,-2765.32401016,0.00032285,120]
[360768606,1746999113743,-839.4758719,0.00032285,120]
[360768607,1746999113778,-683.9780169,0.00032285,120]
[360768608,1746999113813,-102529.52947325,0.00032285,31]
[360768609,1746999113849,-240.82074905,0.00032285,120]
[360768610,1746999113886,-4877.0,0.00032285,32]
[360768611,1746999113923,-3160.3307078,0.00032285,120]
[360768612,1746999113959,-3035.02236499,0.00032285,120]
[360768613,1746999113996,-2000.0,0.00032285,120]
[360768614,1746999114033,-1093.68798268,0.00032285,120]
[360768615,1746999114068,-3197.01121313,0.00032285,120]
[360768616,1746999114107,-2582.35501223,0.00032285,120]
[360768617,1746999114143,-80939.89451872,0.00032285,60]
[360768618,1746999114180,-2431.12829852,0.00032285,120]
[360768619,1746999114217,-821.3539705,0.00032285,120]
[360768620,1746999114256,-3851.29199546,0.00032285,60]
[360768621,1746999114293,-1001.16445832,0.00032285,120]
[360768622,1746999114331,-461.4447038,0.00032285,120]
[360768623,1746999114380,-6784.16581252,0.00032285,120]
[360768624,1746999114419,-900.90756916,0.00032285,120]
[360768625,1746999114456,-3459.11213776,0.00032285,120]
[360768626,1746999114495,-423.87650298,0.00032285,120]
[360768627,1746999114533,-2291.70271424,0.00032285,120]
[360768628,1746999114572,-214.54992932,0.00032285,120]
[360768629,1746999114610,-314.97761289,0.00032285,120]
[360768630,1746999114648,-202.47368134,0.00032285,120]
[360768631,1746999114685,-2204.24865096,0.00032285,120]
[360768632,1746999114724,-3452.40366627,0.00032285,120]
[360768633,1746999114761,-268.10977845,0.00032285,120]
[360768634,1746999114798,-905.40675695,0.00032285,120]
[360768635,1746999114834,-218.00558904,0.00032285,120]
[360768636,1746999114872,-1239.328,0.00032285,40]
[360768637,1746999114912,-30444.0,0.00032285,120]
[360768638,1746999114950,-150.0,0.00032285,120]
[360768639,1746999114987,-3035.93861939,0.00032285,30]
[360768640,1746999115026,-500.0,0.00032285,120]
[360768641,1746999115064,-500.0,0.00032285,120]
[360768642,1746999115102,-8584.07779269,0.00032285,120]
[360768643,1746999115138,-200.0,0.00032285,120]
[360768644,1746999115176,-400.0,0.00032285,120]
[360768645,1746999115213,-400.57370725,0.00032285,120]
[360768646,1746999115250,-400.0,0.00032285,120]
[360768647,1746999115288,-401.311796,0.00032285,120]
[360768648,1746999115326,-403.79101244,0.00032285,120]
[360768649,1746999115363,-400.0,0.00032285,120]
[360768650,1746999115400,-400.0,0.00032285,120]
[360768651,1746999115437,-400.0,0.00032285,120]
[360768652,1746999115474,-400.0,0.00032285,120]
[360768653,1746999115510,-400.0,0.00032285,120]
[360768654,1746999115679,-400.0,0.00032285,120]
[360768655,1746999115716,-400.0,0.00032285,30]
[360768656,1746999115753,-400.0,0.00032285,30]
[360768657,1746999115787,-400.0,0.00032285,120]
[360768658,1746999115822,-400.0,0.00032285,120]
[360768659,1746999115857,-402.66919914,0.00032285,120]
[360768660,1746999115892,-400.0,0.00032285,120]
[360768661,1746999115928,-400.0,0.00032285,120]
[360768662,1746999115966,-400.0,0.00032285,120]
[360768663,1746999116002,-309.89063897,0.00032285,120]
[360768664,1746999116038,-400.0,0.00032285,120]
[360768665,1746999116074,-400.0,0.00032285,120]
[360768666,1746999116111,-400.0,0.00032285,120]
[360768667,1746999116148,-400.0,0.00032285,120]
[360768668,1746999116185,-452.23051336,0.00032285,120]
[360768669,1746999116221,-525.46364915,0.00032285,120]
[360768670,1746999116259,-501.17702518,0.00032285,120]
[360768671,1746999116297,-400.0,0.00032285,120]
[360768672,1746999116334,-400.0,0.00032285,120]
[360768673,1746999116370,-499.39006624,0.00032285,120]
[360768674,1746999116408,-400.0,0.00032285,120]
[360768675,1746999116445,-402.82879292,0.00032285,120]
[360768676,1746999116484,-402.60581353,0.00032285,120]
[360768677,1746999116525,-501.30439946,0.00032285,120]
[360768678,1746999116562,-400.0,0.00032285,120]
[360768679,1746999116598,-400.0,0.00032285,120]
[360768680,1746999116635,-400.0,0.00032285,120]
[360768681,1746999116671,-400.96455368,0.00032285,120]
[360768682,1746999116706,-400.0,0.00032285,120]
[360768683,1746999116742,-400.0,0.00032285,120]
[360768684,1746999116778,-400.0,0.00032285,120]
[360768685,1746999116815,-155.22584658,0.00032285,120]
[360768686,1746999116851,-400.0,0.00032285,120]
[360768687,1746999116887,-400.0,0.00032285,120]
[360768688,1746999116923,-200.0,0.00032285,120]
[360768689,1746999116959,-400.0,0.00032285,120]
[360768690,1746999116996,-400.0,0.00032285,120]
[360768691,1746999117033,-282.63,0.00032285,120]
[360768692,1746999117069,-400.0,0.00032285,120]
[360768693,1746999117107,-400.0,0.00032285,120]
[360768694,1746999117144,-308.24882822,0.00032285,120]
[360768695,1746999117182,-504.32465404,0.00032285,120]
[360768696,1746999117217,-208.01283144,0.00032285,120]
[360768697,1746999117253,-400.0,0.00032285,120]
[360768698,1746999117290,-400.0,0.00032285,120]
[360768699,1746999117330,-503.96144838,0.00032285,120]
[360768700,1746999117368,-400.0,0.00032285,120]
[360768701,1746999117405,-400.0,0.00032285,120]
[360768702,1746999117443,-400.0,0.00032285,120]
[360768703,1746999117482,-400.0,0.00032285,120]
[360768704,1746999117522,-468.02378816,0.00032285,120]
[360768705,1746999117560,-401.22516961,0.00032285,120]
[360768706,1746999117598,-400.0,0.00032285,120]
[360768707,1746999117635,-485.14,0.00032285,120]
[360768708,1746999117673,-400.0,0.00032285,120]
[360768709,1746999117710,-400.0,0.00032285,120]
[360768710,1746999117748,-400.0,0.00032285,120]
[360768711,1746999117785,-404.12578191,0.00032285,120]
[360768712,1746999117822,-400.0,0.00032285,120]
[360768713,1746999117859,-400.0,0.00032285,120]
[360768714,1746999117896,-400.0,0.00032285,120]
[360768715,1746999117940,-401.54678134,0.00032285,120]
[360768716,1746999117980,-400.0,0.00032285,120]
[360768717,1746999118018,-403.26516946,0.00032285,120]
[360768718,1746999118055,-400.0,0.00032285,120]
[360768719,1746999118092,-400.0,0.00032285,120]
[360768720,1746999118130,-400.0,0.00032285,120]
[360768721,1746999118168,-400.0,0.00032285,120]
[360768722,1746999118210,-309.83,0.00032285,120]
[360768723,1746999118249,-406.72809058,0.00032285,120]
[360768724,1746999118288,-400.0,0.00032285,120]
[360768725,1746999118325,-400.0,0.00032285,120]
[360768726,1746999118365,-400.0,0.00032285,120]
[360768727,1746999118405,-322.87218082,0.00032285,120]
[360768728,1746999118443,-400.0,0.00032285,120]
[360768729,1746999118481,-400.0,0.00032285,120]
[360768730,1746999118519,-539.99859498,0.00032285,120]
[360768731,1746999118557,-415.82494353,0.00032285,120]
[360768732,1746999118594,-501.67255527,0.00032285,120]
[360768733,1746999118634,-400.0,0.00032285,120]
[360768734,1746999118675,-299.19306426,0.00032285,120]
[360768735,1746999118716,-400.0,0.00032285,120]
[360768736,1746999118756,-308.48559122,0.00032285,120]
[360768737,1746999118796,-400.0,0.00032285,120]
[360768738,1746999118833,-400.0,0.00032285,120]
[360768739,1746999118870,-400.0,0.00032285,120]
[360768740,1746999118908,-400.0,0.00032285,120]
[360768741,1746999118946,-400.0,0.00032285,120]
[360768742,1746999118983,-400.0,0.00032285,120]
[360768743,1746999119021,-400.0,0.00032285,120]
[360768744,1746999119058,-400.0,0.00032285,120]
[360768745,1746999119096,-275.51,0.00032285,120]
[360768746,1746999119133,-400.0,0.00032285,120]
[360768747,1746999119172,-400.0,0.00032285,120]
[360768748,1746999119212,-315.32,0.00032285,120]
[360768749,1746999119367,-400.0,0.00032285,120]
[360768750,1746999119406,-400.0,0.00032285,120]
[360768751,1746999119445,-400.0,0.00032285,120]
[360768752,1746999119484,-402.1496638,0.00032285,120]
[360768753,1746999119522,-402.53894027,0.00032285,120]
[360768754,1746999119561,-400.0,0.00032285,120]
[360768755,1746999119600,-400.0,0.00032285,120]
[360768756,1746999119638,-400.0,0.00032285,120]
[360768757,1746999119678,-400.0,0.00032285,120]
[360768758,1746999119718,-211.43298111,0.00032285,120]
[360768759,1746999119758,-400.0,0.00032285,120]
[360768760,1746999119801,-400.0,0.00032285,120]
[360768761,1746999119843,-400.0,0.00032285,120]
[360768762,1746999119883,-400.0,0.00032285,120]
[360768763,1746999119922,-400.0,0.00032285,120]
[360768764,1746999119960,-400.0,0.00032285,120]
[360768765,1746999119999,-400.0,0.00032285,120]
[360768766,1746999120038,-400.0,0.00032285,120]
[360768767,1746999120081,-400.0,0.00032285,120]
[360768768,1746999120122,-400.0,0.00032285,120]
[360768769,1746999120164,-400.0,0.00032285,120]
[360768770,1746999120206,-400.0,0.00032285,120]
[360768771,1746999120248,-400.0,0.00032285,120]
[360768772,1746999120288,-400.0,0.00032285,120]
[360768773,1746999120326,-206.81,0.00032285,120]
[360768774,1746999120366,-444.37,0.00032285,120]
[360768775,1746999120404,-400.0,0.00032285,120]
[360768776,1746999120443,-400.0,0.00032285,120]
[360768777,1746999120490,-400.0,0.00032285,120]
[360768778,1746999120532,-400.0,0.00032285,120]
[360768779,1746999120572,-400.0,0.00032285,120]
[360768780,1746999120609,-400.0,0.00032285,120]
[360768781,1746999120647,-400.0,0.00032285,120]
[360768782,1746999120685,-400.0,0.00032285,120]
[360768783,1746999120722,-295.87,0.00032285,120]
[360768784,1746999120760,-400.0,0.00032285,120]
[360768785,1746999120796,-400.0,0.00032285,120]
[360768786,1746999120832,-400.0,0.00032285,120]
[360768787,1746999120870,-400.0,0.00032285,120]
[360768788,1746999120909,-400.0,0.00032285,120]
[360768789,1746999120946,-400.0,0.00032285,120]
[360768790,1746999120985,-400.0,0.00032285,120]
[360768791,1746999121025,-400.0,0.00032285,120]
[360768792,1746999121063,-400.0,0.00032285,120]
[360768793,1746999121101,-400.0,0.00032285,120]
[360768794,1746999121138,-400.0,0.00032285,120]
[360768795,1746999121178,-503.28651076,0.00032285,120]
[360768796,1746999121218,-400.0,0.00032285,120]
[360768797,1746999121257,-328.02084634,0.00032285,120]
[360768798,1746999121296,-456.09,0.00032285,120]
[360768799,1746999121334,-456.09,0.00032285,120]
[360768800,1746999121377,-456.09,0.00032285,120]
[360768801,1746999121418,-456.09,0.00032285,120]
[360768802,1746999121460,-456.09,0.00032285,120]
[360768803,1746999121501,-456.09,0.00032285,120]
[360768804,1746999121541,-456.09,0.00032285,120]
[360768805,1746999121582,-456.09,0.00032285,120]
[360768806,1746999121621,-456.09,0.00032285,120]
[360768807,1746999121659,-456.09,0.00032285,120]
[360768808,1746999121698,-456.09,0.00032285,120]
[360768809,1746999121738,-456.09,0.00032285,120]
[360768810,1746999121777,-456.09,0.00032285,120]
[360768811,1746999121820,-456.09,0.00032285,120]
[360768812,1746999121858,-456.09,0.00032285,120]
[360768813,1746999121897,-456.09,0.00032285,120]
[360768814,1746999121935,-400.0,0.00032285,120]
[360768815,1746999121974,-456.09,0.00032285,120]
[360768816,1746999122012,-400.0,0.00032285,120]
[360768817,1746999122050,-456.09,0.00032285,120]
[360768818,1746999122089,-400.0,0.00032285,120]
[360768819,1746999122130,-456.09,0.00032285,120]
[360768820,1746999122172,-400.0,0.00032285,120]
[360768821,1746999122221,-456.09,0.00032285,120]
[360768822,1746999122265,-400.0,0.00032285,120]
[360768823,1746999122318,-456.09,0.00032285,120]
[360768824,1746999122359,-164.51199739,0.00032285,120]
[360768825,1746999122398,-456.09,0.00032285,120]
[360768826,1746999122441,-456.09,0.00032285,120]
[360768827,1746999122482,-456.11912551,0.00032285,120]
[360768828,1746999122522,-516.27089739,0.00032285,120]
[360768829,1746999122561,-400.0,0.00032285,120]
[360768830,1746999122600,-400.0,0.00032285,120]
[360768831,1746999122640,-400.0,0.00032285,120]
[360768832,1746999122680,-400.0,0.00032285,120]
[360768833,1746999122718,-400.0,0.00032285,120]
[360768834,1746999122756,-500.0,0.00032285,120]
[360768835,1746999122793,-500.0,0.00032285,120]
[360768836,1746999122831,-500.0,0.00032285,120]
[360768837,1746999122869,-500.0,0.00032285,120]
[360768838,1746999122907,-500.0,0.00032285,120]
[360768839,1746999122946,-500.0,0.00032285,120]
[360768840,1746999122984,-500.0,0.00032285,120]
[360768841,1746999123022,-500.0,0.00032285,120]
[360768842,1746999123066,-500.0,0.00032285,120]
[360768843,1746999123106,-500.0,0.00032285,120]
[360768844,1746999123270,-500.0,0.00032285,120]
[360768845,1746999123313,-500.0,0.00032285,120]
[360768846,1746999123355,-500.0,0.00032285,120]
[360768847,1746999123397,-400.0,0.00032285,120]
[360768848,1746999123439,-500.0,0.00032285,120]
[360768849,1746999123483,-400.0,0.00032285,120]
[360768850,1746999123524,-500.0,0.00032285,120]
[360768851,1746999123568,-400.0,0.00032285,120]
[360768852,1746999123608,-400.0,0.00032285,120]
[360768853,1746999123648,-400.0,0.00032285,120]
[360768854,1746999123689,-500.0,0.00032285,120]
[360768855,1746999123730,-500.0,0.00032285,120]
[360768856,1746999123771,-402.49103288,0.00032285,120]
[360768857,1746999123812,-500.0,0.00032285,120]
[360768858,1746999123853,-500.0,0.00032285,120]
[360768859,1746999123893,-500.0,0.00032285,120]
[360768860,1746999123935,-500.0,0.00032285,120]
[360768861,1746999123974,-500.0,0.00032285,120]
[360768862,1746999124015,-304.76350187,0.00032285,120]
[360768863,1746999124055,-301.9125032,0.00032285,120]
[360768864,1746999124094,-402.75280077,0.00032285,120]
[360768865,1746999124136,-400.0,0.00032285,120]
[360768866,1746999124180,-400.0,0.00032285,120]
[360768867,1746999124228,-401.68698194,0.00032285,120]
[360768868,1746999124272,-445.44778477,0.00032285,120]
[360768869,1746999124315,-400.0,0.00032285,120]
[360768870,1746999124355,-402.66886466,0.00032285,120]
[360768871,1746999124395,-400.0,0.00032285,120]
[360768872,1746999124435,-402.85015394,0.00032285,120]
[360768873,1746999124477,-273.20431788,0.00032285,120]
[360768874,1746999124516,-400.0,0.00032285,120]
[360768875,1746999124556,-400.0,0.00032285,120]
[360768876,1746999124595,-409.2933375,0.00032285,120]
[360768877,1746999124636,-404.10905592,0.00032285,120]
[360768878,1746999124676,-505.6826506,0.00032285,120]
[360768879,1746999124716,-403.60232207,0.00032285,120]
[360768880,1746999124755,-413.11324403,0.00032285,120]
[360768881,1746999124793,-309.14728528,0.00032285,120]
[360768882,1746999124833,-400.0,0.00032285,120]
[360768883,1746999124873,-400.0,0.00032285,120]
[360768884,1746999124913,-400.0,0.00032285,120]
[360768885,1746999124955,-400.0,0.00032285,120]
[360768886,1746999124995,-400.0,0.00032285,120]
[360768887,1746999125035,-400.0,0.00032285,120]
[360768888,1746999125075,-400.0,0.00032285,120]
[360768889,1746999125114,-225.24854917,0.00032285,120]
[360768890,1746999125154,-403.18260697,0.00032285,120]
[360768891,1746999125196,-400.0,0.00032285,120]
[360768892,1746999125237,-400.0,0.00032285,120]
[360768893,1746999125278,-400.0,0.00032285,120]
[360768894,1746999125318,-400.0,0.00032285,120]
[360768895,1746999125357,-270.31952237,0.00032285,120]
[360768896,1746999125398,-400.0,0.00032285,120]
[360768897,1746999125441,-400.0,0.00032285,120]
[360768898,1746999125481,-400.0,0.00032285,120]
[360768899,1746999125521,-406.33311062,0.00032285,120]
[360768900,1746999125561,-413.64323504,0.00032285,120]
[360768901,1746999125602,-400.0,0.00032285,120]
[360768902,1746999125643,-400.0,0.00032285,120]
[360768903,1746999125685,-400.0,0.00032285,120]
[360768904,1746999125724,-400.0,0.00032285,120]
[360768905,1746999125764,-400.0,0.00032285,120]
[360768906,1746999125803,-226.24039619,0.00032285,120]
[360768907,1746999125842,-413.81766193,0.00032285,120]
[360768908,1746999125881,-400.0,0.00032285,120]
[360768909,1746999125922,-400.0,0.00032285,120]
[360768910,1746999125963,-400.0,0.00032285,120]
[360768911,1746999126003,-400.0,0.00032285,120]
[360768912,1746999126045,-400.0,0.00032285,120]
[360768913,1746999126086,-400.0,0.00032285,120]
[360768914,1746999126127,-400.0,0.00032285,120]
[360768915,1746999126168,-400.0,0.00032285,120]
[360768916,1746999126211,-400.0,0.00032285,120]
[360768917,1746999126252,-400.0,0.00032285,120]
[360768918,1746999126295,-400.0,0.00032285,120]
[360768919,1746999126336,-400.0,0.00032285,120]
[360768920,1746999126378,-400.0,0.00032285,120]
[360768921,1746999126418,-352.49,0.00032285,120]
[360768922,1746999126458,-400.0,0.00032285,120]
[360768923,1746999126499,-400.0,0.00032285,120]
[360768924,1746999126543,-400.0,0.00032285,120]
[360768925,1746999126583,-400.0,0.00032285,120]
[360768926,1746999126622,-400.0,0.00032285,120]
[360768927,1746999126663,-402.38972112,0.00032285,120]
[360768928,1746999126705,-266.36,0.00032285,120]
[360768929,1746999126744,-400.0,0.00032285,120]
[360768930,1746999126783,-400.0,0.00032285,120]
[360768931,1746999126821,-200.77779797,0.00032285,120]
[360768932,1746999126859,-400.0,0.00032285,120]
[360768933,1746999126898,-400.0,0.00032285,120]
[360768934,1746999126937,-471.33905638,0.00032285,120]
[360768935,1746999126976,-400.0,0.00032285,120]
[360768936,1746999127014,-400.0,0.00032285,120]
[360768937,1746999127054,-400.0,0.00032285,120]
[360768938,1746999127093,-166.29518343,0.00032285,120]
[360768939,1746999127132,-417.99448071,0.00032285,120]
[360768940,1746999127285,-400.0,0.00032285,120]
[360768941,1746999127325,-400.0,0.00032285,120]
[360768942,1746999127364,-416.48461931,0.00032285,120]
[360768943,1746999127403,-400.0,0.00032285,120]
[360768944,1746999127443,-403.46237084,0.00032285,120]
[360768945,1746999127483,-400.0,0.00032285,120]
[360768946,1746999127522,-400.0,0.00032285,120]
[360768947,1746999127563,-400.0,0.00032285,120]
[360768948,1746999127603,-400.0,0.00032285,120]
[360768949,1746999127644,-400.0,0.00032285,120]
[360768950,1746999127684,-400.0,0.00032285,120]
[360768951,1746999127727,-400.0,0.00032285,120]
[360768952,1746999127766,-400.0,0.00032285,120]
[360768953,1746999127807,-208.89,0.00032285,120]
[360768954,1746999127845,-400.0,0.00032285,120]
[360768955,1746999127884,-400.0,0.00032285,120]
[360768956,1746999127923,-400.0,0.00032285,120]
[360768957,1746999127960,-400.0,0.00032285,120]
[360768958,1746999127998,-400.0,0.00032285,120]
[360768959,1746999128037,-400.0,0.00032285,120]
[360768960,1746999128077,-404.54151241,0.00032285,120]
[360768961,1746999128118,-400.0,0.00032285,120]
[360768962,1746999128157,-400.0,0.00032285,120]
[360768963,1746999128196,-410.44302355,0.00032285,120]
[360768964,1746999128236,-400.0,0.00032285,120]
[360768965,1746999128276,-400.0,0.00032285,120]
[360768966,1746999128318,-400.0,0.00032285,120]
[360768967,1746999128357,-400.0,0.00032285,120]
[360768968,1746999128396,-408.90012799,0.00032285,120]
[360768969,1746999128437,-400.0,0.00032285,120]
[360768970,1746999128480,-400.0,0.00032285,120]
[360768971,1746999128523,-500.0,0.00032285,120]
[360768972,1746999128563,-400.0,0.00032285,120]
[360768973,1746999128602,-401.71316515,0.00032285,120]
[360768974,1746999128640,-400.0,0.00032285,120]
[360768975,1746999128680,-400.0,0.00032285,120]
[360768976,1746999128718,-232.47195249,0.00032285,120]
[360768977,1746999128756,-400.0,0.00032285,120]
[360768978,1746999128792,-400.0,0.00032285,120]
[360768979,1746999128830,-400.0,0.00032285,120]
[360768980,1746999128868,-400.0,0.00032285,120]
[360768981,1746999128906,-400.0,0.00032285,120]
[360768982,1746999128944,-400.0,0.00032285,120]
[360768983,1746999128983,-400.0,0.00032285,120]
[360768984,1746999129020,-413.97815311,0.00032285,120]
[360768985,1746999129058,-250.09085467,0.00032285,120]
[360768986,1746999129095,-410.40353036,0.00032285,120]
[360768987,1746999129134,-223.66461557,0.00032285,120]
[360768988,1746999129175,-400.0,0.00032285,120]
[360768989,1746999129218,-405.48,0.00032285,120]
[360768990,1746999129258,-501.22612975,0.00032285,120]
[360768991,1746999129294,-402.27229783,0.00032285,120]
[360768992,1746999129332,-155.06169157,0.00032285,120]
[360768993,1746999129372,-400.0,0.00032285,120]
[360768994,1746999129411,-400.0,0.00032285,120]
[360768995,1746999129449,-413.33823226,0.00032285,120]
[360768996,1746999129488,-240.83,0.00032285,120]
[360768997,1746999129526,-530.25159678,0.00032285,120]
[360768998,1746999129563,-2217.32,0.00032285,30]
[360768999,1746999129600,-2217.32,0.00032285,30]
[360769000,1746999129637,-2217.32,0.00032285,30]
[360769001,1746999129674,-2217.32,0.00032285,30]
[360769002,1746999129712,-2217.32,0.00032285,30]
[360769003,1746999129751,-2217.32,0.00032285,30]
[360769004,1746999129787,-2217.32,0.00032285,30]
[360769005,1746999129826,-2217.32,0.00032285,30]
[360769006,1746999129863,-2217.32,0.00032285,30]
[360769007,1746999129901,-2217.32,0.00032285,30]
[360769008,1746999129940,-2217.32,0.00032285,30]
[360769009,1746999129978,-2217.32,0.00032285,30]
[360769010,1746999130016,-2217.32,0.00032285,30]
[360769011,1746999130055,-2217.32,0.00032285,30]
[360769012,1746999130093,-2217.32,0.00032285,30]
[360769013,1746999130133,-2217.32,0.00032285,30]
[360769014,1746999130173,-2217.32,0.00032285,30]
[360769015,1746999130215,-2217.32,0.00032285,30]
[360769016,1746999130254,-2217.32,0.00032285,30]
[360769017,1746999130295,-2217.32,0.00032285,30]
[360769018,1746999130332,-2217.32,0.00032285,30]
[360769019,1746999130372,-2217.32,0.00032285,30]
[360769020,1746999130410,-2217.32,0.00032285,30]
[360769021,1746999130448,-400.0,0.00032285,120]
[360769022,1746999130485,-400.0,0.00032285,120]
[360769023,1746999130524,-2217.49502013,0.00032285,30]
[360769024,1746999130562,-710.77,0.00032285,120]
[360769025,1746999130598,-400.0,0.00032285,120]
[360769026,1746999130635,-710.77,0.00032285,120]
[360769027,1746999130672,-400.0,0.00032285,120]
[360769028,1746999130709,-710.77,0.00032285,120]
[360769029,1746999130747,-710.77,0.00032285,120]
[360769030,1746999130789,-710.77,0.00032285,120]
[360769031,1746999130826,-710.77,0.00032285,120]